[Event "56th Biel Festival MTO 2023"]
[White "Muthaiah AL"]
[Black "Nie,Xinyang"]
[Site "Biel"]
[Round "9.11"]
[Annotator "ChessBase"]
[Result "1/2-1/2"]
[Date "2023.07.27"]
[WhiteElo "2445"]
[BlackElo "2288"]
[PlyCount "68"]
[TimeControl "60"]

1. d4 {[%emt 0:0:0]} d5 {[%emt 0:0:0]} 2. c4 {[%emt 0:0:0]} c6 {[%emt 0:0:0]} 3. cxd5 {[%emt 0:0:0]} cxd5 {[%emt 0:0:0]} 4. Nc3 {[%emt 0:0:0]} Nf6 {[%emt 0:0:0]} 5. Bf4 {[%emt 0:0:0]} Nc6 {[%emt 0:0:0]} 6. e3 {[%emt 0:0:0]} Bf5 {[%emt 0:0:0]} 7. Rc1 {[%emt 0:0:0]} a6 {[%emt 0:0:0]} 8. Nf3 {[%emt 0:0:20]} Rc8 {[%emt 0:0:51]} 9. Be2 {[%emt 0:5:17]} e6 {[%emt 0:0:5]} 10. O-O {[%emt 0:0:19]} Bd6 {[%emt 0:0:6]} 11. Bxd6 {[%emt 0:2:14]} Qxd6 {[%emt 0:0:4]} 12. Na4 {[%emt 0:1:34]} Nd7 {[%emt 0:3:2]} 13. Qb3 {[%emt 0:3:41]} Rc7 {[%emt 0:0:38]} 14. Nc5 {[%emt 0:3:13]} Nxc5 {[%emt 0:7:0]} 15. Rxc5 {[%emt 0:2:42]} O-O {[%emt 0:2:4]} 16. Rfc1 {[%emt 0:5:54]} Bg4 {[%emt 0:0:51]} 17. Qb6 {[%emt 0:23:27]} Rd7 {[%emt 0:0:14]} 18. Kh1 {[%emt 0:0:54]} Bxf3 {[%emt 0:11:20]} 19. Bxf3 {[%emt 0:4:48]} Qe7 {[%emt 0:3:55]} 20. Be2 {[%emt 0:3:22]} Rd6 {[%emt 0:2:10]} 21. Qb3 {[%emt 0:2:13]} Ra8 {[%emt 0:2:34]} 22. g3 {[%emt 0:3:25]} g6 {[%emt 0:0:29]} 23. Kg2 {[%emt 0:0:20]} Rd7 {[%emt 0:7:37]} 24. a4 {[%emt 0:5:52]} Qd8 {[%emt 0:1:40]} 25. Qc3 {[%emt 0:2:27]} Ne7 {[%emt 0:0:19]} 26. Bd3 {[%emt 0:7:5]} Nf5 {[%emt 0:6:19]} 27. Bxf5 {[%emt 0:0:44]} gxf5 {[%emt 0:0:3]} 28. b4 {[%emt 0:2:39]} Kg7 {[%emt 0:0:19]} 29. Rc8 {[%emt 0:4:55]} Rxc8 {[%emt 0:0:29]} 30. Qxc8 {[%emt 0:0:3]} Qxc8 {[%emt 0:2:15]} 31. Rxc8 {[%emt 0:2:51]} Rd6 {[%emt 0:0:31]} 32. a5 {[%emt 0:1:51]} Rc6 {[%emt 0:0:14]} 33. h3 {[%emt 0:11:11]} h6 {[%emt 0:20:4]} 34. Kf3 {[%emt 0:0:0]} h5 {[%emt 0:0:0]} 1/2-1/2

[Event "56th Biel Festival MTO 2023"]
[White "Eidelman,Gabriel"]
[Black "Huang,Renjie"]
[Site "Biel"]
[Round "9.12"]
[Annotator "ChessBase"]
[Result "0-1"]
[Date "2023.07.27"]
[WhiteElo "2204"]
[BlackElo "2445"]
[PlyCount "132"]
[TimeControl "60"]

1. d4 {[%emt 0:0:0]} Nf6 {[%emt 0:0:0]} 2. c4 {[%emt 0:0:0]} g6 {[%emt 0:0:0]} 3. f3 {[%emt 0:0:0]} c5 {[%emt 0:0:0]} 4. d5 {[%emt 0:0:0]} e6 {[%emt 0:0:0]} 5. Nc3 {[%emt 0:0:0]} d6 {[%emt 0:3:5]} 6. e4 {[%emt 0:0:0]} exd5 {[%emt 0:0:31]} 7. cxd5 {[%emt 0:0:0]} a6 {[%emt 0:0:35]} 8. a4 {[%emt 0:0:0]} Bg7 {[%emt 0:0:20]} 9. Nge2 {[%emt 0:0:0]} O-O {[%emt 0:0:13]} 10. Ng3 {[%emt 0:0:0]} Nbd7 {[%emt 0:0:12]} 11. Be2 {[%emt 0:0:0]} Rb8 {[%emt 0:2:9]} 12. O-O {[%emt 0:0:35]} Ne8 {[%emt 0:0:34]} 13. Be3 {[%emt 0:21:39]} Nc7 {[%emt 0:0:33]} 14. f4 {[%emt 0:18:45]} b5 {[%emt 0:1:28]} 15. e5 {[%emt 0:2:27]} bxa4 {[%emt 0:0:17]} 16. Nce4 {[%emt 0:15:22]} dxe5 {[%emt 0:6:8]} 17. f5 {[%emt 0:2:24]} Nf6 {[%emt 0:0:57]} 18. fxg6 {[%emt 0:11:32]} hxg6 {[%emt 0:8:22]} 19. Bxc5 {[%emt 0:8:26]} Nxe4 {[%emt 0:8:28]} 20. Nxe4 {[%emt 0:0:19]} Re8 {[%emt 0:0:26]} 21. Nd6 {[%emt 0:1:14]} Bf8 {[%emt 0:1:0]} 22. Ne4 {[%emt 0:4:48]} Bxc5+ {[%emt 0:1:53]} 23. Nxc5 {[%emt 0:0:1]} Qxd5 {[%emt 0:0:35]} 24. Qxd5 {[%emt 0:8:53]} Nxd5 {[%emt 0:0:4]} 25. Bc4 {[%emt 0:1:39]} Nf4 {[%emt 0:0:23]} 26. Rae1 {[%emt 0:2:39]} Bf5 {[%emt 0:1:7]} 27. Nxa6 {[%emt 0:0:30]} Rbc8 {[%emt 0:2:34]} 28. Bb5 {[%emt 0:0:10]} Re6 {[%emt 0:0:10]} 29. Bd7 {[%emt 0:1:8]} Rxa6 {[%emt 0:1:34]} 30. Bxc8 {[%emt 0:0:2]} Bxc8 {[%emt 0:0:4]} 31. Rxe5 {[%emt 0:0:3]} Ne6 {[%emt 0:0:10]} 32. Rb5 {[%emt 0:2:54]} Bd7 {[%emt 0:0:57]} 33. Rb8+ {[%emt 0:0:27]} Kg7 {[%emt 0:0:18]} 34. Rd1 {[%emt 0:0:2]} Ra7 {[%emt 0:0:23]} 35. Rc1 {[%emt 0:1:6]} Nf4 {[%emt 0:1:54]} 36. Rc4 {[%emt 0:0:33]} Nd5 {[%emt 0:1:50]} 37. Kf2 {[%emt 0:0:0]} Be6 {[%emt 0:0:0]} 38. Rd4 {[%emt 0:0:52]} Kf6 {[%emt 0:0:0]} 39. Rd2 {[%emt 0:0:30]} Ne7 {[%emt 0:0:0]} 40. Rb6 {[%emt 0:0:30]} Kg7 {[%emt 0:0:0]} 41. Rbd6 {[%emt 0:30:30]} Ra5 {[%emt 0:0:0]} 42. R6d4 {[%emt 0:0:30]} Nc6 {[%emt 0:0:0]} 43. Re4 {[%emt 0:0:30]} Bb3 {[%emt 0:0:0]} 44. g4 {[%emt 0:0:30]} Ne5 {[%emt 0:0:0]} 45. Kg3 {[%emt 0:0:30]} Nc4 {[%emt 0:0:0]} 46. Rf2 {[%emt 0:0:30]} Rd5 {[%emt 0:0:0]} 47. h4 {[%emt 0:0:30]} Rd1 {[%emt 0:0:0]} 48. h5 {[%emt 0:0:30]} Nd6 {[%emt 0:0:0]} 49. Re5 {[%emt 0:0:30]} Rd4 {[%emt 0:0:0]} 50. hxg6 {[%emt 0:0:30]} Kxg6 {[%emt 0:0:0]} 51. Rf4 {[%emt 0:0:30]} Rd2 {[%emt 0:0:0]} 52. g5 {[%emt 0:0:30]} Kg7 {[%emt 0:0:0]} 53. Rf6 {[%emt 0:0:30]} Nc4 {[%emt 0:0:0]} 54. Re7 {[%emt 0:0:30]} Nxb2 {[%emt 0:0:0]} 55. Ra6 {[%emt 0:0:30]} Rd1 {[%emt 0:0:0]} 56. Kh2 {[%emt 0:0:30]} Rd5 {[%emt 0:0:0]} 57. g6 {[%emt 0:0:32]} Rh5+ {[%emt 0:0:0]} 58. Kg3 {[%emt 0:0:4]} Rg5+ {[%emt 0:0:0]} 59. Kf4 {[%emt 0:0:5]} Rxg6 {[%emt 0:0:0]} 60. Rxg6+ {[%emt 0:1:2]} Kxg6 {[%emt 0:0:0]} 61. Re3 {[%emt 0:0:11]} Nc4 {[%emt 0:0:0]} 62. Rc3 {[%emt 0:0:21]} f6 {[%emt 0:0:0]} 63. Rg3+ {[%emt 0:0:28]} Kf7 {[%emt 0:0:0]} 64. Rc3 {[%emt 0:0:4]} Ke6 {[%emt 0:0:0]} 65. Ke4 {[%emt 0:0:27]} a3 {[%emt 0:0:0]} 66. Rxb3 {[%emt 0:0:8]} a2 {[%emt 0:0:0]} 0-1

[Event "56th Biel Festival MTO 2023"]
[White "Joly,Julien"]
[Black "Seul,Georg"]
[Site "Biel"]
[Round "9.13"]
[Annotator "ChessBase"]
[Result "0-1"]
[Date "2023.07.27"]
[WhiteElo "2249"]
[BlackElo "2376"]
[PlyCount "37"]
[TimeControl "60"]

1. d4 {[%emt 0:0:0]} Nf6 {[%emt 0:0:0]} 2. c4 {[%emt 0:0:0]} e6 {[%emt 0:0:0]} 3. g3 {[%emt 0:0:0]} Bb4+ {[%emt 0:0:0]} 4. Bd2 {[%emt 0:0:0]} c5 {[%emt 0:0:0]} 5. Bxb4 {[%emt 0:0:0]} cxb4 {[%emt 0:0:0]} 6. Bg2 {[%emt 0:0:0]} O-O {[%emt 0:0:0]} 7. e3 {[%emt 0:0:0]} d6 {[%emt 0:0:0]} 8. Ne2 {[%emt 0:0:0]} Nc6 {[%emt 0:3:28]} 9. O-O {[%emt 0:0:0]} e5 {[%emt 0:5:47]} 10. h3 {[%emt 0:0:0]} Re8 {[%emt 0:6:0]} 11. a3 {[%emt 0:7:42]} Qb6 {[%emt 0:7:35]} 12. axb4 {[%emt 0:6:58]} Nxb4 {[%emt 0:1:18]} 13. Na3 {[%emt 0:5:27]} Bf5 {[%emt 0:9:9]} 14. c5 {[%emt 0:21:42]} dxc5 {[%emt 0:1:13]} 15. dxe5 {[%emt 0:1:13]} Rad8 {[%emt 0:0:53]} 16. Qa4 {[%emt 0:11:21]} Bd3 {[%emt 0:34:22]} 17. Nf4 {[%emt 0:20:33]} Bxf1 {[%emt 0:1:13]} 18. Rxf1 {[%emt 0:3:0]} Nd7 {[%emt 0:5:34]} 19. Rc1 {[%emt 0:13:16]} 0-1

[Event "56th Biel Festival MTO 2023"]
[White "Wessman,Richard"]
[Black "Yuffa,Daniil"]
[Site "Biel"]
[Round "9.14"]
[Annotator "ChessBase"]
[Result "0-1"]
[Date "2023.07.27"]
[WhiteElo "2410"]
[BlackElo "2603"]
[PlyCount "44"]
[TimeControl "60"]

1. d4 {[%emt 0:0:0]} Nf6 {[%emt 0:0:0]} 2. c4 {[%emt 0:0:0]} g6 {[%emt 0:0:0]} 3. Nc3 {[%emt 0:0:0]} Bg7 {[%emt 0:0:0]} 4. g3 {[%emt 0:0:0]} c5 {[%emt 0:0:0]} 5. dxc5 {[%emt 0:0:0]} Qa5 {[%emt 0:0:0]} 6. Bg2 {[%emt 0:0:0]} Qxc5 {[%emt 0:0:0]} 7. Be3 {[%emt 0:0:0]} Qa5 {[%emt 0:14:40]} 8. Nh3 {[%emt 0:27:21]} Nc6 {[%emt 0:1:21]} 9. O-O {[%emt 0:1:24]} O-O {[%emt 0:5:10]} 10. Nf4 {[%emt 0:1:27]} d6 {[%emt 0:0:59]} 11. a3 {[%emt 0:3:21]} Bf5 {[%emt 0:2:46]} 12. b4 {[%emt 0:0:30]} Qd8 {[%emt 0:1:17]} 13. Rc1 {[%emt 0:0:11]} Qd7 {[%emt 0:11:5]} 14. Qa4 {[%emt 0:5:49]} Ng4 {[%emt 0:12:29]} 15. Bd2 {[%emt 0:1:7]} a5 {[%emt 0:0:36]} 16. b5 {[%emt 0:16:25]} Nd4 {[%emt 0:0:8]} 17. h3 {[%emt 0:13:23]} Ne5 {[%emt 0:5:22]} 18. Be3 {[%emt 0:0:17]} Bc2 {[%emt 0:6:25]} 19. Rxc2 {[%emt 0:0:13]} Nxc2 {[%emt 0:0:3]} 20. Qxc2 {[%emt 0:0:27]} Nxc4 {[%emt 0:1:8]} 21. Bc1 {[%emt 0:10:29]} Rfc8 {[%emt 0:3:16]} 22. Qe4 {[%emt 0:0:38]} Bxc3 {[%emt 0:3:9]} 0-1

[Event "56th Biel Festival MTO 2023"]
[White "Morawietz,Dieter"]
[Black "Rodrigue-Lemieux,Shawn"]
[Site "Biel"]
[Round "9.15"]
[Annotator "ChessBase"]
[Result "0-1"]
[Date "2023.07.27"]
[WhiteElo "2396"]
[BlackElo "2495"]
[PlyCount "69"]
[TimeControl "60"]

1. e4 {[%emt 0:0:0]} c6 {[%emt 0:0:0]} 2. d4 {[%emt 0:0:0]} d5 {[%emt 0:0:0]} 3. exd5 {[%emt 0:0:0]} cxd5 {[%emt 0:0:0]} 4. Bf4 {[%emt 0:0:0]} Nc6 {[%emt 0:0:0]} 5. Nf3 {[%emt 0:0:0]} Bf5 {[%emt 0:5:13]} 6. Bb5 {[%emt 0:4:8]} Qb6 {[%emt 0:8:27]} 7. c4 {[%emt 0:19:37]} a6 {[%emt 0:19:44]} 8. Bxc6+ {[%emt 0:2:17]} bxc6 {[%emt 0:0:33]} 9. cxd5 {[%emt 0:6:30]} Qxb2 {[%emt 0:11:1]} 10. O-O {[%emt 0:2:11]} cxd5 {[%emt 0:2:3]} 11. Nbd2 {[%emt 0:15:12]} Nf6 {[%emt 0:9:31]} 12. Rc1 {[%emt 0:11:59]} e6 {[%emt 0:2:50]} 13. Nb3 {[%emt 0:12:4]} Be7 {[%emt 0:2:9]} 14. Ne5 {[%emt 0:0:10]} O-O {[%emt 0:6:9]} 15. g4 {[%emt 0:3:41]} Bg6 {[%emt 0:0:45]} 16. h4 {[%emt 0:1:0]} h5 {[%emt 0:4:40]} 17. Bg5 {[%emt 0:14:40]} Rac8 {[%emt 0:2:34]} 18. Nxg6 {[%emt 0:0:30]} fxg6 {[%emt 0:0:7]} 19. Qd3 {[%emt 0:0:49]} Rxc1 {[%emt 0:1:7]} 20. Bxc1 {[%emt 0:0:28]} Qxa2 {[%emt 0:0:14]} 21. g5 {[%emt 0:2:27]} Ne4 {[%emt 0:1:27]} 22. f3 {[%emt 0:2:1]} Bd6 {[%emt 0:2:12]} 23. Nd2 {[%emt 0:0:19]} Nxd2 {[%emt 0:0:31]} 24. Bxd2 {[%emt 0:0:10]} Kh7 {[%emt 0:0:11]} 25. Re1 {[%emt 0:0:21]} Re8 {[%emt 0:1:40]} 26. Re2 {[%emt 0:0:11]} Qa4 {[%emt 0:1:22]} 27. Kg2 {[%emt 0:0:37]} Qb5 {[%emt 0:1:54]} 28. Qe3 {[%emt 0:0:44]} e5 {[%emt 0:1:55]} 29. Bc3 {[%emt 0:1:32]} e4 {[%emt 0:0:43]} 30. Rb2 {[%emt 0:1:7]} Qd7 {[%emt 0:0:31]} 31. Bb4 {[%emt 0:0:31]} exf3+ {[%emt 0:3:39]} 32. Qxf3 {[%emt 0:0:5]} Rf8 {[%emt 0:0:14]} 33. Qh3 {[%emt 0:1:6]} Qxh3+ {[%emt 0:0:46]} 34. Kxh3 {[%emt 0:0:5]} Rb8 {[%emt 0:0:16]} 35. Bc3 {[%emt 0:0:0]} 0-1

[Event "56th Biel Festival MTO 2023"]
[White "Wang,Chen"]
[Black "Rosen,Eric"]
[Site "Biel"]
[Round "9.16"]
[Annotator "ChessBase"]
[Result "1/2-1/2"]
[Date "2023.07.27"]
[WhiteElo "2477"]
[BlackElo "2344"]
[PlyCount "71"]
[TimeControl "60"]

1. e4 {[%emt 0:0:0]} c5 {[%emt 0:0:0]} 2. Nf3 {[%emt 0:0:0]} e6 {[%emt 0:0:0]} 3. g3 {[%emt 0:0:0]} d5 {[%emt 0:0:0]} 4. Nc3 {[%emt 0:0:0]} d4 {[%emt 0:0:0]} 5. Ne2 {[%emt 0:0:20]} Nc6 {[%emt 0:0:0]} 6. d3 {[%emt 0:0:35]} e5 {[%emt 0:0:0]} 7. Bg2 {[%emt 0:0:12]} Be7 {[%emt 0:0:0]} 8. O-O {[%emt 0:0:9]} h5 {[%emt 0:0:0]} 9. h3 {[%emt 0:9:15]} Be6 {[%emt 0:0:0]} 10. Ne1 {[%emt 0:1:17]} Qd7 {[%emt 0:0:0]} 11. Kh2 {[%emt 0:1:21]} h4 {[%emt 0:4:8]} 12. g4 {[%emt 0:2:16]} g5 {[%emt 0:1:54]} 13. c4 {[%emt 0:0:14]} f6 {[%emt 0:1:33]} 14. f3 {[%emt 0:2:5]} Bd6 {[%emt 0:0:58]} 15. Rf2 {[%emt 0:0:5]} a6 {[%emt 0:0:53]} 16. Bf1 {[%emt 0:0:14]} Nge7 {[%emt 0:1:35]} 17. Ng1 {[%emt 0:1:6]} Kf7 {[%emt 0:4:57]} 18. b3 {[%emt 0:0:9]} b5 {[%emt 0:1:11]} 19. Rc2 {[%emt 0:1:4]} Rhb8 {[%emt 0:3:31]} 20. Bd2 {[%emt 0:0:58]} Qb7 {[%emt 0:7:25]} 21. Ne2 {[%emt 0:0:47]} a5 {[%emt 0:3:35]} 22. a4 {[%emt 0:0:32]} bxc4 {[%emt 0:2:19]} 23. bxc4 {[%emt 0:0:6]} Ra6 {[%emt 0:0:36]} 24. Rca2 {[%emt 0:12:52]} Rb6 {[%emt 0:3:20]} 25. Nc2 {[%emt 0:1:37]} Nb4 {[%emt 0:3:2]} 26. Na3 {[%emt 0:1:59]} Nxa2 {[%emt 0:11:19]} 27. Rxa2 {[%emt 0:0:4]} Nc6 {[%emt 0:3:23]} 28. Nb5 {[%emt 0:1:56]} Nb4 {[%emt 0:0:52]} 29. Bxb4 {[%emt 0:16:59]} axb4 {[%emt 0:4:13]} 30. Nc1 {[%emt 0:0:18]} Ra8 {[%emt 0:1:37]} 31. Qc2 {[%emt 0:0:49]} Be7 {[%emt 0:12:58]} 32. Be2 {[%emt 0:0:20]} Rba6 {[%emt 0:1:28]} 33. Bd1 {[%emt 0:0:13]} Rc8 {[%emt 0:8:31]} 34. Kg2 {[%emt 0:0:53]} Qa8 {[%emt 0:0:39]} 35. Kf1 {[%emt 0:0:56]} Bd8 {[%emt 0:1:39]} 36. Qb3 {[%emt 0:0:47]} 1/2-1/2

[Event "56th Biel Festival MTO 2023"]
[White "Sanchez Alvarez,Roberto Carlos"]
[Black "Aarav Dengla"]
[Site "Biel"]
[Round "9.17"]
[Annotator "ChessBase"]
[Result "1-0"]
[Date "2023.07.27"]
[WhiteElo "2444"]
[BlackElo "2343"]
[PlyCount "71"]
[TimeControl "60"]

1. d4 {[%emt 0:0:0]} d5 {[%emt 0:0:0]} 2. c4 {[%emt 0:0:0]} c6 {[%emt 0:0:0]} 3. Nf3 {[%emt 0:0:0]} Nf6 {[%emt 0:0:0]} 4. Qb3 {[%emt 0:0:0]} dxc4 {[%emt 0:0:0]} 5. Qxc4 {[%emt 0:0:0]} Bf5 {[%emt 0:0:0]} 6. g3 {[%emt 0:0:0]} e6 {[%emt 0:0:0]} 7. Bg2 {[%emt 0:0:0]} Nbd7 {[%emt 0:0:0]} 8. O-O {[%emt 0:0:0]} h6 {[%emt 0:0:0]} 9. Nc3 {[%emt 0:3:22]} Be7 {[%emt 0:0:0]} 10. Re1 {[%emt 0:0:36]} Ne4 {[%emt 0:0:0]} 11. Qb3 {[%emt 0:0:8]} Qb6 {[%emt 0:2:55]} 12. Nh4 {[%emt 0:0:41]} Bxh4 {[%emt 0:3:47]} 13. gxh4 {[%emt 0:2:20]} Ndf6 {[%emt 0:0:9]} 14. f3 {[%emt 0:9:5]} Nxc3 {[%emt 0:0:6]} 15. bxc3 {[%emt 0:0:41]} e5 {[%emt 0:0:4]} 16. e4 {[%emt 0:4:48]} Be6 {[%emt 0:0:4]} 17. Qa3 {[%emt 0:1:13]} Nd7 {[%emt 0:21:18]} 18. f4 {[%emt 0:21:53]} exd4 {[%emt 0:21:34]} 19. cxd4 {[%emt 0:0:27]} Qxd4+ {[%emt 0:0:27]} 20. Be3 {[%emt 0:0:28]} Qf6 {[%emt 0:0:14]} 21. Rac1 {[%emt 0:9:3]} Qxh4 {[%emt 0:19:39]} 22. f5 {[%emt 0:1:50]} Bxa2 {[%emt 0:4:28]} 23. Qxa2 {[%emt 0:3:54]} Ne5 {[%emt 0:5:17]} 24. Bf2 {[%emt 0:20:9]} Qg5 {[%emt 0:10:40]} 25. Qa3 {[%emt 0:0:30]} Rd8 {[%emt 0:1:27]} 26. Rcd1 {[%emt 0:2:54]} Ng4 {[%emt 0:3:22]} 27. Bxa7 {[%emt 0:6:24]} Ra8 {[%emt 0:7:50]} 28. Qd6 {[%emt 0:3:6]} Rd8 {[%emt 0:0:9]} 29. Qc5 {[%emt 0:6:59]} Rd2 {[%emt 0:0:28]} 30. Rxd2 {[%emt 0:1:6]} Qxd2 {[%emt 0:0:2]} 31. Rb1 {[%emt 0:0:48]} Qd7 {[%emt 0:1:15]} 32. e5 {[%emt 0:0:38]} Kd8 {[%emt 0:0:42]} 33. Bb6+ {[%emt 0:1:28]} Ke8 {[%emt 0:0:9]} 34. Ra1 {[%emt 0:0:31]} Qd2 {[%emt 0:0:46]} 35. e6 {[%emt 0:0:56]} fxe6 {[%emt 0:0:28]} 36. fxe6 {[%emt 0:0:20]} 1-0

[Event "56th Biel Festival MTO 2023"]
[White "Pham,Le Thao Nguyen"]
[Black "Weishaeutel,Moritz"]
[Site "Biel"]
[Round "9.18"]
[Annotator "ChessBase"]
[Result "1/2-1/2"]
[Date "2023.07.27"]
[WhiteElo "2369"]
[BlackElo "2442"]
[PlyCount "47"]
[TimeControl "60"]

1. d4 {[%emt 0:0:0]} d5 {[%emt 0:0:0]} 2. Nf3 {[%emt 0:0:0]} c5 {[%emt 0:0:0]} 3. c3 {[%emt 0:0:0]} Nf6 {[%emt 0:0:0]} 4. Bf4 {[%emt 0:0:0]} Nc6 {[%emt 0:0:0]} 5. Nbd2 {[%emt 0:5:11]} cxd4 {[%emt 0:0:0]} 6. cxd4 {[%emt 0:5:23]} Qb6 {[%emt 0:0:0]} 7. Qb3 {[%emt 0:2:11]} Nxd4 {[%emt 0:5:10]} 8. Qxb6 {[%emt 0:4:31]} Nxf3+ {[%emt 0:0:12]} 9. exf3 {[%emt 0:0:26]} axb6 {[%emt 0:0:6]} 10. Bc7 {[%emt 0:0:24]} Nd7 {[%emt 0:7:51]} 11. Bb5 {[%emt 0:10:5]} g6 {[%emt 0:0:37]} 12. a3 {[%emt 0:9:46]} Bg7 {[%emt 0:7:41]} 13. O-O-O {[%emt 0:1:20]} O-O {[%emt 0:0:10]} 14. Nb3 {[%emt 0:1:8]} Ne5 {[%emt 0:5:7]} 15. Nd4 {[%emt 0:10:23]} Nc4 {[%emt 0:3:50]} 16. Rhe1 {[%emt 0:1:2]} Ra5 {[%emt 0:14:33]} 17. a4 {[%emt 0:6:42]} e5 {[%emt 0:3:36]} 18. Nc2 {[%emt 0:4:56]} Bf5 {[%emt 0:16:58]} 19. Rxd5 {[%emt 0:8:13]} Bh6+ {[%emt 0:0:8]} 20. Ne3 {[%emt 0:0:26]} Rc8 {[%emt 0:0:22]} 21. Rd8+ {[%emt 0:0:52]} Rxd8 {[%emt 0:0:7]} 22. Bxd8 {[%emt 0:0:8]} Ra8 {[%emt 0:0:10]} 23. Bxc4 {[%emt 0:1:0]} Rxd8 {[%emt 0:0:6]} 24. b3 {[%emt 0:0:30]} 1/2-1/2

[Event "56th Biel Festival MTO 2023"]
[White "Karthik Rajaa"]
[Black "Materia,Marco"]
[Site "Biel"]
[Round "9.19"]
[Annotator "ChessBase"]
[Result "1/2-1/2"]
[Date "2023.07.27"]
[WhiteElo "2276"]
[BlackElo "2436"]
[PlyCount "44"]
[TimeControl "60"]

1. d4 {[%emt 0:0:0]} Nf6 {[%emt 0:0:0]} 2. c4 {[%emt 0:0:0]} e6 {[%emt 0:0:0]} 3. Nf3 {[%emt 0:0:0]} d5 {[%emt 0:0:0]} 4. g3 {[%emt 0:0:0]} Be7 {[%emt 0:0:0]} 5. Bg2 {[%emt 0:0:0]} O-O {[%emt 0:0:0]} 6. O-O {[%emt 0:0:0]} c6 {[%emt 0:0:0]} 7. Qc2 {[%emt 0:0:0]} b6 {[%emt 0:0:0]} 8. Nbd2 {[%emt 0:0:0]} c5 {[%emt 0:0:0]} 9. e4 {[%emt 0:10:13]} Nc6 {[%emt 0:0:0]} 10. e5 {[%emt 0:9:2]} Nd7 {[%emt 0:0:0]} 11. a3 {[%emt 0:5:30]} Bb7 {[%emt 0:22:51]} 12. cxd5 {[%emt 0:3:3]} exd5 {[%emt 0:0:28]} 13. Re1 {[%emt 0:5:45]} Rc8 {[%emt 0:7:3]} 14. Bh3 {[%emt 0:8:57]} cxd4 {[%emt 0:8:13]} 15. Qb1 {[%emt 0:11:42]} f6 {[%emt 0:4:53]} 16. exf6 {[%emt 0:8:59]} Bxf6 {[%emt 0:4:26]} 17. b4 {[%emt 0:1:40]} d3 {[%emt 0:16:10]} 18. Bb2 {[%emt 0:2:0]} Rc7 {[%emt 0:5:28]} 19. Bxf6 {[%emt 0:0:51]} Qxf6 {[%emt 0:0:49]} 20. Re6 {[%emt 0:3:7]} Qc3 {[%emt 0:3:40]} 21. Qe1 {[%emt 0:3:2]} Nd8 {[%emt 0:5:3]} 22. Bg2 {[%emt 0:19:37]} Nf7 {[%emt 0:13:59]} 1/2-1/2

[Event "56th Biel Festival MTO 2023"]
[White "Rohith Krishna S"]
[Black "Lohia,Sohum"]
[Site "Biel"]
[Round "9.20"]
[Annotator "ChessBase"]
[Result "1-0"]
[Date "2023.07.27"]
[WhiteElo "2429"]
[BlackElo "2247"]
[PlyCount "60"]
[TimeControl "60"]

1. Nf3 {[%emt 0:0:0]} Nf6 {[%emt 0:0:0]} 2. g3 {[%emt 0:0:0]} e6 {[%emt 0:0:0]} 3. Bg2 {[%emt 0:0:0]} d5 {[%emt 0:0:0]} 4. O-O {[%emt 0:0:0]} Be7 {[%emt 0:0:0]} 5. d3 {[%emt 0:0:0]} c5 {[%emt 0:0:0]} 6. Nbd2 {[%emt 0:0:0]} Nc6 {[%emt 0:0:0]} 7. e4 {[%emt 0:0:0]} O-O {[%emt 0:0:0]} 8. Re1 {[%emt 0:0:0]} Qc7 {[%emt 0:0:0]} 9. e5 {[%emt 0:0:0]} Nd7 {[%emt 0:0:19]} 10. Qe2 {[%emt 0:0:0]} b5 {[%emt 0:0:55]} 11. Nf1 {[%emt 0:0:11]} Bb7 {[%emt 0:0:32]} 12. h4 {[%emt 0:1:10]} Rfc8 {[%emt 0:0:56]} 13. Bf4 {[%emt 0:1:48]} a5 {[%emt 0:2:30]} 14. N1h2 {[%emt 0:9:44]} Qd8 {[%emt 0:2:52]} 15. c3 {[%emt 0:11:14]} a4 {[%emt 0:3:26]} 16. a3 {[%emt 0:0:17]} d4 {[%emt 0:7:38]} 17. cxd4 {[%emt 0:4:41]} cxd4 {[%emt 0:1:41]} 18. Ng5 {[%emt 0:2:53]} h6 {[%emt 0:3:28]} 19. Ne4 {[%emt 0:23:12]} Bf8 {[%emt 0:17:9]} 20. Qh5 {[%emt 0:8:9]} Qe8 {[%emt 0:6:33]} 21. Qe2 {[%emt 0:0:35]} Qd8 {[%emt 0:11:50]} 22. Ng4 {[%emt 0:2:15]} Na5 {[%emt 0:9:47]} 23. Bxh6 {[%emt 0:2:25]} Bxe4 {[%emt 0:2:23]} 24. Bg5 {[%emt 0:0:6]} Be7 {[%emt 0:10:11]} 25. Bxe7 {[%emt 0:0:8]} Qxe7 {[%emt 0:0:8]} 26. Bxe4 {[%emt 0:0:10]} Ra7 {[%emt 0:1:12]} 27. h5 {[%emt 0:6:35]} Rc2 {[%emt 0:8:58]} 28. h6 {[%emt 0:17:24]} Nf8 {[%emt 0:10:8]} 29. Kh2 {[%emt 0:2:21]} Qb4 {[%emt 0:1:45]} 30. Nf6+ {[%emt 0:0:40]} Kh8 {[%emt 0:0:0]} 1-0

[Event "56th Biel Festival MTO 2023"]
[White "Huang,Qian"]
[Black "Coles,Ruben"]
[Site "Biel"]
[Round "9.21"]
[Annotator "ChessBase"]
[Result "1-0"]
[Date "2023.07.27"]
[WhiteElo "2422"]
[BlackElo "2167"]
[PlyCount "59"]
[TimeControl "60"]

1. Nf3 {[%emt 0:0:0]} d5 {[%emt 0:0:0]} 2. g3 {[%emt 0:0:0]} Nf6 {[%emt 0:0:0]} 3. Bg2 {[%emt 0:0:0]} e6 {[%emt 0:0:0]} 4. c4 {[%emt 0:0:0]} Be7 {[%emt 0:0:0]} 5. O-O {[%emt 0:0:0]} O-O {[%emt 0:0:0]} 6. b3 {[%emt 0:0:0]} b6 {[%emt 0:0:0]} 7. Bb2 {[%emt 0:0:0]} Bb7 {[%emt 0:0:0]} 8. cxd5 {[%emt 0:0:0]} exd5 {[%emt 0:0:0]} 9. e3 {[%emt 0:0:0]} Nbd7 {[%emt 0:0:0]} 10. Nc3 {[%emt 0:0:0]} Re8 {[%emt 0:0:0]} 11. Rc1 {[%emt 0:0:0]} Bf8 {[%emt 0:7:9]} 12. d3 {[%emt 0:0:0]} a6 {[%emt 0:1:36]} 13. Re1 {[%emt 0:0:53]} c5 {[%emt 0:3:0]} 14. d4 {[%emt 0:1:32]} Rc8 {[%emt 0:4:7]} 15. dxc5 {[%emt 0:4:20]} bxc5 {[%emt 0:2:54]} 16. Ne2 {[%emt 0:0:21]} Nb6 {[%emt 0:6:18]} 17. Nf4 {[%emt 0:3:26]} Bd6 {[%emt 0:7:15]} 18. Nh4 {[%emt 0:9:59]} Bxf4 {[%emt 0:8:49]} 19. gxf4 {[%emt 0:0:52]} Bc6 {[%emt 0:6:5]} 20. Rxc5 {[%emt 0:11:7]} Ne4 {[%emt 0:12:54]} 21. Bxe4 {[%emt 0:1:0]} Qxh4 {[%emt 0:6:34]} 22. Bg2 {[%emt 0:12:2]} Qh6 {[%emt 0:4:29]} 23. Qd4 {[%emt 0:6:55]} Bb7 {[%emt 0:9:18]} 24. Rec1 {[%emt 0:3:41]} Rxc5 {[%emt 0:2:53]} 25. Rxc5 {[%emt 0:0:10]} Nc8 {[%emt 0:4:1]} 26. Bxd5 {[%emt 0:7:18]} Qg6+ {[%emt 0:2:52]} 27. Kf1 {[%emt 0:0:10]} Bxd5 {[%emt 0:13:46]} 28. Rxd5 {[%emt 0:40:44]} h6 {[%emt 0:0:30]} 29. f5 {[%emt 0:0:30]} Qg5 {[%emt 0:0:30]} 30. h4 {[%emt 0:0:30]} 1-0

[Event "56th Biel Festival MTO 2023"]
[White "Sutter,Oliver"]
[Black "Licznerski,Lukasz"]
[Site "Biel"]
[Round "9.22"]
[Annotator "ChessBase"]
[Result "1/2-1/2"]
[Date "2023.07.27"]
[WhiteElo "2313"]
[BlackElo "2430"]
[PlyCount "48"]
[TimeControl "60"]

1. d4 {[%emt 0:0:0]} Nf6 {[%emt 0:0:0]} 2. Nf3 {[%emt 0:0:0]} g6 {[%emt 0:0:0]} 3. Bg5 {[%emt 0:0:0]} Bg7 {[%emt 0:0:0]} 4. Nbd2 {[%emt 0:0:0]} h6 {[%emt 0:0:0]} 5. Bh4 {[%emt 0:0:0]} d6 {[%emt 0:0:0]} 6. c3 {[%emt 0:0:0]} b6 {[%emt 0:1:5]} 7. e4 {[%emt 0:0:0]} g5 {[%emt 0:4:15]} 8. Bg3 {[%emt 0:0:0]} Bb7 {[%emt 0:0:24]} 9. Bd3 {[%emt 0:0:0]} Nh5 {[%emt 0:0:14]} 10. Qe2 {[%emt 0:4:59]} e6 {[%emt 0:3:45]} 11. O-O-O {[%emt 0:25:14]} Nd7 {[%emt 0:3:47]} 12. Ba6 {[%emt 0:3:29]} Qc8 {[%emt 0:0:34]} 13. Bxb7 {[%emt 0:0:12]} Qxb7 {[%emt 0:0:3]} 14. Kb1 {[%emt 0:3:55]} b5 {[%emt 0:1:6]} 15. e5 {[%emt 0:9:18]} d5 {[%emt 0:1:12]} 16. Nb3 {[%emt 0:2:39]} a5 {[%emt 0:7:24]} 17. Nc5 {[%emt 0:5:55]} Nxc5 {[%emt 0:9:34]} 18. dxc5 {[%emt 0:0:4]} Bf8 {[%emt 0:0:14]} 19. c6 {[%emt 0:14:18]} Qxc6 {[%emt 0:6:1]} 20. Nd4 {[%emt 0:0:4]} Nxg3 {[%emt 0:0:6]} 21. fxg3 {[%emt 0:3:22]} Qb6 {[%emt 0:10:10]} 22. Rhf1 {[%emt 0:2:30]} Bg7 {[%emt 0:6:1]} 23. Qh5 {[%emt 0:5:23]} O-O {[%emt 0:12:52]} 24. h4 {[%emt 0:0:24]} Bxe5 {[%emt 0:9:46]} 1/2-1/2